Cogmind - Beta 10.1 --- EXPLORER MODE // 2020.10.14 @ 12:04:28 Player: MoMMI Result: Destroyed by G-47 Trooper with Particle Gun Performance ------------- Evolutions (2) 1000 Regions Visited (5) 1000 Robots Destroyed (22) 110 Value Destroyed (434) 434 Prototype IDs (7) 140 Alien Tech Used (0) 0 Bonus (300) 300 TOTAL SCORE: 2984 Bonus ------- Aligned with FarCom 300 Cogmind --------- Core Integrity 0/550 Matter 290/300 Energy 99/100 System Corruption 1% Temperature Cool (18) Movement Core (50) Location -8/Materials Parts ------- > --- POWER (2) -------- (None) > --- PROPULSION (4) --- (None) > --- UTILITY (4) ------ Propulsion Shielding > --- WEAPON (2) ------- (None) > --- INVENTORY (4) ---- Flight Unit Flight Unit Advanced Visual Processing Unit Targeting Computer Peak State ------------ > --- POWER ------------ Light Ion Engine Light Deuterium Engine > --- PROPULSION ------- Cesium-ion Thruster Cesium-ion Thruster Improved VTOL Module > --- UTILITY ---------- Experimental Sensor Array 0b10 Alert Chip Improved ECM Suite Propulsion Shielding > --- WEAPON ----------- Light Assault Rifle Great Maul > --- INVENTORY -------- Flight Unit Flight Unit Advanced Visual Processing Unit Targeting Computer [Rating: 34] Favorites ----------- Power Light Ion Engine Engine Light Ion Engine Propulsion Flight Unit Leg Aluminum Leg Wheel Wheel Flight Unit Flight Unit Utility Signal Interpreter Device Experimental Sensor Array Processor Signal Interpreter Protection Propulsion Shielding Weapon Assault Rifle Energy Gun EM Pulse Gun Energy Cannon Beam Cannon Ballistic Gun Assault Rifle Ballistic Cannon Assault Cannon Impact Weapon Great Maul Build | -11 -10 -10 -10 -9 -8 ------- Run | Scr Mat Min Exi Min Mat Slots Evolved 5 | . 1 . . . 4 Power 1 | . . . . . 1 Propulsion 2 | . 1 . . . 1 Utility 2 | . . . . . 2 Weapon . | . . . . . . Parts Attached 36 | 7 7 2 1 6 13 Power 3 | 1 . . . 1 1 Engine 3 | 1 . . . 1 1 Core . | . . . . . . Reactor . | . . . . . . Propulsion 17 | 2 5 2 . 3 5 Treads . | . . . . . . Leg 4 | . 3 1 . . . Wheel 2 | 2 . . . . . Hover . | . . . . . . Flight 11 | . 2 1 . 3 5 Utility 6 | 2 . . 1 1 2 Device 2 | . . . . 1 1 Storage . | . . . . . . Processor 2 | 1 . . 1 . . Hackware . | . . . . . . Protection 2 | 1 . . . . 1 Artifact . | . . . . . . Weapon 10 | 2 2 . . 1 5 Energy Gun 2 | 1 1 . . . . Energy Cannon 1 | . 1 . . . . Ballistic Gun 4 | 1 . . . 1 2 Ballistic Cannon 2 | . . . . . 2 Launcher . | . . . . . . Special Weapon . | . . . . . . Impact Weapon 1 | . . . . . 1 Slashing Weapon . | . . . . . . Piercing Weapon . | . . . . . . Special Melee Weapon . | . . . . . . Unidentified Prototypes 3 | . . . 1 1 1 Parts Lost 15 | . 2 . . . 13 Power 2 | . . . . . 2 Propulsion 5 | . 1 . . . 4 Utility 3 | . . . . . 3 Weapon 5 | . 1 . . . 4 Highest Loss Streak 11 | . 1 . . . 11 Average Slot Usage (%) 96 | . 94 99 100 100 86 Engine 12 | . 12 12 12 12 13 Leg 11 | . 15 22 12 9 . Flight 22 | . 14 13 25 27 29 Device 2 | . . . . 1 12 Processor 16 | . 12 12 21 23 7 Protection 6 | . 12 12 3 . 8 Energy Gun 1 | . 7 . . . . Energy Cannon 8 | . 4 12 12 12 3 Ballistic Gun 11 | . 12 12 12 12 7 Naked Turns . | . . . . . . Heaviest Build 18 | 8 9 9 9 8 18 Greatest Support 20 | 20 20 20 10 12 20 Greatest Overweight (x) 2 | . 1 1 . . 2 Average Overweight (x) . | . . . . . . Largest Inventory Capacity 4 | 4 4 4 4 4 4 Average Capacity 4 | 4 4 4 4 4 4 Most Carried 4 | 2 4 4 4 4 4 Average Carried 3 | . 3 4 3 3 3 Final Capacity 4 | 4 4 4 4 4 4 Final Carried 4 | 2 4 4 4 3 4 Class Distribution -------------------- 80% | Hacker-Mutant 10% | Hacker-Scout 5% | Scavenger-Scout Dominant Class ---------------- Hacker-Mutant | -10/Materials Hacker-Mutant | -10/Mines Hacker-Mutant | -10/Exiles Hacker-Mutant | -9/Mines Hacker-Scout | -8/Materials Resources | -11 -10 -10 -10 -9 -8 ----------- Run | Scr Mat Min Exi Min Mat Matter Collected 698 | 253 160 27 . 131 127 Remotely . | . . . . . . Salvage Created 688 | 40 348 85 . 201 14 Parts 48 | 3 26 4 . 13 2 Haulers Intercepted . | . . . . . . Recyclers Shooed 1 | . . . . . 1 Parts Field Recycled . | . . . . . . Retrieved Matter . | . . . . . . Parts Self-Destructed . | . . . . . . Prevented . | . . . . . . Kills | -11 -10 -10 -10 -9 -8 ------- Run | Scr Mat Min Exi Min Mat Combat Hostiles Destroyed 18 | 1 8 2 . 7 . Guns 13 | 1 7 2 . 3 . Cannons 5 | . 1 . . 4 . Classes Destroyed 4 | 1 2 . . 1 . Recycler 1 | . . . . 1 . Watcher 3 | . 2 . . . 1 Swarmer 11 | . 2 2 . 7 . Grunt 7 | 1 6 . . . . Best Kill Streak 6 | 1 3 2 . 6 1 Combat Bots Only 5 | 1 2 2 . 5 . Max Kills in Single Turn 1 | 1 1 1 . 1 1 Gunslinging . | . . . . . . Exploded . | . . . . . . Melee . | . . . . . . Uniques/NPCs Destroyed . | . . . . . . Combat | -11 -10 -10 -10 -9 -8 -------- Run | Scr Mat Min Exi Min Mat Damage Taken 1632 | 13 266 67 . 153 1133 Core 688 | 6 55 32 . 45 550 Absorbed by Shields . | . . . . . . Core Remaining (%) 70 | 97 . . . 44 . Volleys Fired 72 | 1 28 9 . 17 17 Largest 2 | 2 2 2 . 2 2 Hottest 80 | 60 80 80 . 80 80 Shots Fired 138 | 2 52 18 . 34 32 Gun 98 | 2 49 9 . 17 21 Cannon 40 | . 3 9 . 17 11 Launcher . | . . . . . . Special . | . . . . . . Kinetic 85 | 1 28 9 . 17 30 Thermal 31 | . 3 9 . 17 2 Explosive . | . . . . . . Electromagnetic 22 | 1 21 . . . . Robot Hit Streak 31 | 1 24 31 . 8 12 Robot Miss Streak 2 | . 2 1 . 2 1 Penetration Max . | . . . . . . Secondary Targets . | . . . . . . Shots Hit Robots 98 | 1 41 15 . 21 20 Core Hits 40 | 1 15 10 . 9 5 Critical Hits . | . . . . . . Critical Kills . | . . . . . . Critical Parts Destroyed . | . . . . . . Melee Attacks 1 | . . . . . 1 Impact 1 | . . . . . 1 Slashing . | . . . . . . Piercing . | . . . . . . Sneak Attacks . | . . . . . . Combat Hostiles . | . . . . . . Follow-up Attacks . | . . . . . . Damage Inflicted 1339 | 15 499 259 . 313 253 Guns 781 | 15 462 101 . 102 101 Cannons 528 | . 34 158 . 211 125 Explosions . | . . . . . . Melee 22 | . . . . . 22 Ramming 8 | . 3 . . . 5 Kinetic 653 | . 224 101 . 102 226 Thermal 403 | . 34 158 . 211 . Explosive . | . . . . . . Electromagnetic 253 | 15 238 . . . . Impact 22 | . . . . . 22 Slashing . | . . . . . . Piercing . | . . . . . . Highest Corruption . | . . . . . . Average Corruption . | . . . . . . Corruption Purged . | . . . . . . Overload Shots . | . . . . . . Overflow Damage 40 | . . . . 13 27 Projectiles 40 | . . . . 13 27 Explosions . | . . . . . . Melee . | . . . . . . Knockbacks 3 | . . . . . 3 Impact 1 | . . . . . 1 Kinetic 2 | . . . . . 2 Secondary . | . . . . . . Self-Inflicted Damage 3 | . 1 . . . 2 Shots . | . . . . . . Rammed 2 | . 1 . . . 1 Targets Rammed 2 | . 1 . . . 1 Kicked . | . . . . . . Crushed . | . . . . . . Highest Temperature 160 | . 53 54 . 126 160 Average Temperature 44 | . 18 27 . 58 55 Received Heat Transfer 882 | 12 213 . . . 657 Siege Activations . | . . . . . . Robots Corrupted . | . . . . . . Combat Hostiles . | . . . . . . Parts Fried 1 | . 1 . . . . Impact Corruptions . | . . . . . . Robots Melted . | . . . . . . Combat Hostiles . | . . . . . . Parts Melted 1 | . . 1 . . . Heat Transferred 851 | . 74 333 . 444 . Parts Sabotaged . | . . . . . . Parts Stolen . | . . . . . . Parts Stripped . | . . . . . . Power Chain Reactions . | . . . . . . Missiles Intercepted . | . . . . . . Alert | -11 -10 -10 -10 -9 -8 ------- Run | Scr Mat Min Exi Min Mat Peak Influence 228 | 20 228 72 . 209 129 Initial 22 | . 9 22 . . . Average 58 | 1 95 31 . 51 34 Maximum Alert Level 1 | . 1 . . 1 . Low Security (%) 93 | 100 86 100 . 93 100 Level 1 6 | . 13 . . 6 . Level 2 . | . . . . . . Level 3 . | . . . . . . Level 4 . | . . . . . . Level 5 . | . . . . . . High Security . | . . . . . . Max Security . | . . . . . . Squads Dispatched 3 | . 2 . . . 1 Investigation 3 | . 2 . . . 1 Extermination . | . . . . . . Reinforcement . | . . . . . . Assault . | . . . . . . Garrison . | . . . . . . Intercept . | . . . . . . Construction Impeded . | . . . . . . Haulers Reinforced . | . . . . . . Stealth | -11 -10 -10 -10 -9 -8 --------- Run | Scr Mat Min Exi Min Mat Distress Signals 6 | . 1 . . 1 4 Communications Jammed . | . . . . . . Distress Signals . | . . . . . . Times Spotted 66 | 1 14 3 . 8 40 Peak Tracking Total 13 | 1 4 2 . 5 13 Tactical Retreats 11 | . 1 . . 1 9 Traps | -11 -10 -10 -10 -9 -8 ------- Run | Scr Mat Min Exi Min Mat Traps Triggered . | . . . . . . Indirectly . | . . . . . . Trap Hack Attempts . | . . . . . . Triggered . | . . . . . . Disarmed . | . . . . . . Reprogrammed 6 | . 6 . . . . Reused . | . . . . . . Traps Extracted . | . . . . . . Installed . | . . . . . . Triggered . | . . . . . . Machines | -11 -10 -10 -10 -9 -8 ---------- Run | Scr Mat Min Exi Min Mat Machines Disabled 1 | . . . . 1 . Max in Single Turn 1 | . . . . 1 . Machines Sabotaged . | . . . . . . Garrisons Compromised . | . . . . . . Overloaded Fab Kills . | . . . . . . Fab Network Shutdowns . | . . . . . . Hacking | -11 -10 -10 -10 -9 -8 --------- Run | Scr Mat Min Exi Min Mat Machines Accessed 17 | . 10 . 4 . 3 Terminals 9 | . 7 . . . 2 Fabricators . | . . . . . . Repair Stations 1 | . 1 . . . . Recycling Units 2 | . 2 . . . . Scanalyzers 1 | . . . . . 1 Garrison Access . | . . . . . . Total Hacks 80 | . 24 . 49 . 7 Successful 73 | . 18 . 49 . 6 Failed 7 | . 6 . . . 1 Catastrophic . | . . . . . . Database Lockouts . | . . . . . . Manual 9 | . 4 . 2 . 3 Terminals 22 | . 17 . . . 5 Fabricators . | . . . . . . Repair Stations 3 | . 3 . . . . Recycling Units 4 | . 4 . . . . Scanalyzers 2 | . . . . . 2 Garrison Access . | . . . . . . Terminal Hacks 64 | . 12 . 49 . 3 Record 49 | . . . 49 . . Prototype ID Bank 2 | . 2 . . . . Emergency Access Points 3 | . 2 . . . 1 Scanalyzer Index 1 | . 1 . . . . Locate Traps 1 | . 1 . . . . Reprogram Traps 1 | . 1 . . . . Security Status 1 | . 1 . . . . Hauler Manifests 1 | . 1 . . . . Registered Components 2 | . 1 . . . 1 Registered Prototypes 1 | . 1 . . . . Zone Layout 2 | . 1 . . . 1 Fabricator Hacks . | . . . . . . Repair Station Hacks 2 | . 2 . . . . Scan Component 1 | . 1 . . . . Repair 1 | . 1 . . . . Recycling Unit Hacks 2 | . 2 . . . . Report Inventory 2 | . 2 . . . . Scanalyzer 2 | . . . . . 2 Insert Component 1 | . . . . . 1 Analyze 1 | . . . . . 1 Garrison Access Hacks . | . . . . . . Unauthorized Hacks 3 | . 2 . . . 1 Terminals 1 | . . . . . 1 Assimilate 1 | . . . . . 1 Fabricators . | . . . . . . Repair Stations . | . . . . . . Recycling Units 2 | . 2 . . . . Tunnel 2 | . 2 . . . . Scanalyzers . | . . . . . . Garrison Access . | . . . . . . Data Cores Recovered . | . . . . . . Used . | . . . . . . Hacking Detections 8 | . 6 . . . 2 Full Trace Events 2 | . 1 . . . 1 Feedback Events . | . . . . . . Feedback Blocked . | . . . . . . Robot Schematics Acquired . | . . . . . . Robots Built . | . . . . . . Matter . | . . . . . . Time . | . . . . . . Total Robot Build Rating . | . . . . . . Part Schematics Acquired 1 | . . . . . 1 Parts Built . | . . . . . . Matter . | . . . . . . Time . | . . . . . . Total Part Build Rating . | . . . . . . Parts Repaired 1 | . 1 . . . . Time 26 | . 26 . . . . Parts Recycled . | . . . . . . Recycled Matter . | . . . . . . Retrieved Matter . | . . . . . . Retrieved Components . | . . . . . . Parts Scanalyzed 1 | . . . . . 1 Part Schematics Acquired 1 | . . . . . 1 Parts Damaged . | . . . . . . Bothacking | -11 -10 -10 -10 -9 -8 ------------ Run | Scr Mat Min Exi Min Mat Used RIF Installer . | . . . . . . Robots Hacked . | . . . . . . Non-combat . | . . . . . . Combat . | . . . . . . Robot Hacks Applied . | . . . . . . Relay Couplers Released . | . . . . . . Robots Rewired . | . . . . . . Allies Hacked . | . . . . . . Hacks Repelled . | . . . . . . Allies | -11 -10 -10 -10 -9 -8 -------- Run | Scr Mat Min Exi Min Mat Total Allies 1 | . . . . . 1 Largest Group 1 | . . . . . 1 Highest-Rated Group 10 | . . . . . 10 Highest-Rated Ally 10 | . . . . . 10 Total Orders . | . . . . . . Ally Attacks . | . . . . . . Total Damage . | . . . . . . Kills . | . . . . . . Allies Corrupted . | . . . . . . Allies Melted . | . . . . . . Intel | -11 -10 -10 -10 -9 -8 ------- Run | Scr Mat Min Exi Min Mat Robot Analysis Total . | . . . . . . Derelict Logs Recovered . | . . . . . . Drone Launches . | . . . . . . Drone Recoveries . | . . . . . . Exploration | -11 -10 -10 -10 -9 -8 ------------- Run | Scr Mat Min Exi Min Mat Turns Passed 2781 | 123 706 176 795 502 479 Spaces Moved 2652 | 183 628 113 659 423 646 Core 165 | 132 . . . . 33 Treads . | . . . . . . Legs 1329 | . 325 112 659 233 . Wheels 99 | 51 48 . . . . Hover . | . . . . . . Flight 1059 | . 255 1 . 190 613 Fastest Speed 31 | 50 37 117 120 34 31 Average Speed 81 | 58 83 119 120 81 38 Slowest Speed 150 | 80 130 120 120 120 150 Overloaded Moves . | . . . . . . Propulsion Burnouts . | . . . . . . Robots Hopped 13 | . 3 . . 2 8 Cave-ins Triggered . | . . . . . . Exploration Rate (%) 54 | 7 98 26 93 59 41 Regions Visited 5 Branch Regions 3 Pre-discovered Areas 4 | . 2 1 1 . . Known Exits Taken 5 | 1 1 1 1 1 . Unknown Exits Taken . | . . . . . . Scrap Searched . | . . . . . . Spaces Dug 1 | . . . . . 1 Terrain Destroyed 2 | . . . . . 2 Melee . | . . . . . . Projectile 2 | . . . . . 2 AOE . | . . . . . . Terrain Rammed . | . . . . . . Walls Destroyed . | . . . . . . Machines Disabled . | . . . . . . Actions | -11 -10 -10 -10 -9 -8 --------- Run | Scr Mat Min Exi Min Mat Total 3126 | 193 750 135 663 546 839 Wait 342 | . 80 5 . 96 161 Move 2621 | 182 621 112 658 418 630 Hop 13 | . 3 . . 2 8 Pick Up 12 | 3 3 . 2 1 3 Fast Attach 21 | 6 5 2 . 1 7 Attach 4 | 1 1 . . . 2 Detach 1 | . . . . . 1 Swap 11 | . 1 . 1 5 4 Drop 17 | . 3 2 2 6 4 Fire 72 | 1 28 9 . 17 17 Melee 1 | . . . . . 1 Ram 1 | . . . . . 1 Kick 1 | . 1 . . . . Crush . | . . . . . . Escape Stasis . | . . . . . . Rewire 9 | . 4 5 . . . Trap . | . . . . . . Miscellaneous . | . . . . . . Route ------- -11/Scrapyard -10/Materials (discovered 5 exits: *Mat x3 / *Min x2) -10/Mines -10/Exiles (discovered 2 exits: *Min x2) -9/Mines -8/Materials (discovered 1 exit: *Fac) History --------- Turn | Location | Event 2 | -11/Scrapyard | Met Revision 17 107 | -11/Scrapyard | Identified exit to Materials 107 | -11/Scrapyard | Discovered exit to Materials (range 8) 124 | -11/Scrapyard | Entered Materials 124 | -10/Materials | Evolved 1 slot: Propulsion x1 194 | -10/Materials | Met 8R-AWN 250 | -10/Materials | Identified exit to Mines 250 | -10/Materials | Discovered exit to Mines (range 6) 304 | -10/Materials | Build established: Hacker-Mutant 307 | -10/Materials | Repaired EM Pulse Gun 337 | -10/Materials | Identified exit to Materials 337 | -10/Materials | Discovered exit to Materials (range 7) 347 | -10/Materials | Discovered exit to Materials (range 11) 578 | -10/Materials | Discovered exit to Mines (range 8) 689 | -10/Materials | Discovered exit to Materials (range 13) 830 | -10/Materials | Entered Mines 831 | -10/Mines | Learned location of Storage (-7) 832 | -10/Mines | Followed 8R-AWN into the Mines 836 | -10/Mines | Met a Derelict bent on vengeance 869 | -10/Mines | Assembled infested the area 874 | -10/Mines | Assisted by a Guerilla fighting off Assembled 942 | -10/Mines | Identified exit to Exiles 942 | -10/Mines | Discovered exit to Exiles (range 5) 1006 | -10/Mines | Entered Exiles 1024 | -10/Exiles | Identified exit to Mines 1024 | -10/Exiles | Discovered exit to Mines (range 15) 1041 | -10/Exiles | Welcomed by 8R-AWN 1064 | -10/Exiles | Met EX-HEX 1132 | -10/Exiles | Met EX-BIN 1168 | -10/Exiles | Aligned with FarCom system 1170 | -10/Exiles | Given EX-Vault access code 1236 | -10/Exiles | Opened EX-Vault 1242 | -10/Exiles | Found Prototype Processor 1243 | -10/Exiles | Identified 0b10 Alert Chip 1311 | -10/Exiles | Warned to stay clear of 0b10 Research branches 1401 | -10/Exiles | Met EX-DEC 1474 | -10/Exiles | Visited The Gauntlet 1675 | -10/Exiles | Learned location of Zion (-7) 1719 | -10/Exiles | Discovered exit to Mines (range 14) 1801 | -10/Exiles | Left Exiles lab with 0b10 Alert Chip 1801 | -10/Exiles | Entered Mines 2002 | -9/Mines | Identified exit to Materials 2002 | -9/Mines | Discovered exit to Materials (range 5) 2148 | -9/Mines | Core integrity fell below 50% 2242 | -9/Mines | Found a damaged Exp. Sensor Array with a note attached 2243 | -9/Mines | Found Prototype Device 2244 | -9/Mines | Identified Exp. Sensor Array 2303 | -9/Mines | Entered Materials 2303 | -8/Materials | Evolved 4 slots: Power x1, Propulsion x1, Utility x2 2510 | -8/Materials | Identified exit to Factory 2510 | -8/Materials | Discovered exit to Factory (range 15) 2771 | -8/Materials | Core integrity fell below 50% 2779 | -8/Materials | Core integrity fell below 20% 2782 | -8/Materials | Destroyed by G-47 Trooper with Particle Gun Last Messages --------------- 02734_ Penetrated by Slug. 02737_ Slug penetrates Wall. 02743_ Cesium-ion Thruster destroyed. 02749_ U-05 Engineer builds a Door. 02754_ Processing Tank disabled. 02765_ Cesium-ion Thruster destroyed. 02768_ Penetrated by Slug. 02773_ Slug penetrates Wall. 02774_ Slug penetrates G-47 Trooper. 02775_ G-47 Trooper suffers critical hit. 02775_ G-47 Trooper destroyed. 02777_ Slug penetrates Wall. 02780_ Slug penetrates Processing Tank. 02780_ Imp. ECM Suite destroyed. 02781_ Penetrated by Slug. 02781_ Great Maul destroyed. 02781_ Slug penetrates Processing Tank. 02782_ Slammed into R-06 Scavenger. 02782_ Imp. VTOL Module destroyed. 02782_ System corrupted by crushing effect (+1). Map ----- +----------------------------------------------------+ | ????????????????????# # """" ## | | ????????????????????# + """" #? | | ????????????????????# # """" ## | | ????????????????????#########/##### # ] + | | ????????????????????????#= # # ## | | ????????????????????????# """"" # ###########? | | ????????????????????????# """"" # #??????????? | | ????????????????????????# """"" # #??????????? | | ????????????????????????# # ##########?? | | ????????????????????????# # # #?? | | ????????????????????????# # # """ #?? | | ????????????????????????# # # """ #?? | | ??????????????????????###+######### # """ ! #?? | | ??????????????????##### ####### / #?? | | ??????????????????#!! # """ #?? | | ??????????????????#!! k # """ #?? | | ??????????????????#!! % ! # """ #?? | | ??????????????????#!! ###+####### #?? | | ??????????????????#!! ## ##?????????##########?? | | ??????????????????#!! ## #?????????????????????? | | ???????????Y??????###### #?????????????????????? | | ???????????#############a #?????????????????????? | | ?????????? w w #?????????????????????? | | ?????????? #?????????????????????? | | ?????????? rr #?????????????????????? | | ???????????+##### #####@####???????????????????? | | ????????????????# ?# g #???????????????????? | | ????????????????# ??# g g"" #???????????????????? | | ????????????????#???# g""" #???????????????????? | | ????????????????????# g= "" #???????????????????? | | ????????????????????# h[gh"" #???????????????????? | | ????????????????????# ! =! #???????????????????? | | ????????????????????# h #???????????????????? | | ????????????????????# Y ]#???????????????????? | | ????????=???????????# #???????????????????? | | ????????????????????##########???????????????????? | | ?????????????????????????????????????????????????? | | ?????????????????????????????????????????????????? | | ?????????????????????????????????????????????????? | | ?????????????????????????????????????????????????? | | ??????????????????w??????????????????????????????? | | ?????????????????????????????????????????????????? | | ?????????????????????????????????????????????????? | | ?????????????????????????????????????????????????? | | ?????????????????????????????????????????????????? | | ?????????????????????????????????????????????????? | | ?????????????????????????????????????????????????? | | ?????????????????????????????????????????????????? | | ?????????????????????????????????????????????????? | | ?????????????????????????????????????????????????? | +----------------------------------------------------+ Best States ------------- Heat Dissipation 31 Energy Generation 19 Energy Capacity 165 Matter Stores 300 Matter Capacity 300 Sight Range 16 Robot Scan Range 30 Terrain Scan Density 10 ECM Strength 2 Resistance: KI 35 Resistance: TH 35 Resistance: EX 35 Resistance: EM 35 Resistance: I 35 Resistance: S 35 Resistance: P 35 Propulsion Shielding 33 Evasion (%) 63 Offensive Hacking 20 Item Schematics ----------------- Cesium-ion Thruster | -8/Materials | Scanalyzed Robot Schematics ------------------ None Fabricated ------------ Nothing Alien Tech Used ----------------- None Achievements -------------- None Challenges ------------ None Game ------ Seed DeuteriumMomentumField Manual? 0 Play Time 00:57:50 Cumulative 10.0 hours Start 2020.10.14 @ 09:57:43 End 2020.10.14 @ 12:04:28 Sessions 1 Manual Loads 0 Difficulty Explorer Special Mode None Game No. 3 Rogue 0 Adventurer 0 Explorer 3 Win Type - Total 0 Types 0/0/0/0/0/0/0/0/0 Lore% 20 Gallery% 15 Achievement% 17 Wizard Run 0 Options --------- ASCII 0 Keyboard 0 Movement Mouse Keybinds 0 Fullscreen 0 Font 16/SmallcapsGlow Map View 76x50 Tactical HUD 1 Map Filters NONE Filters NONE Steam 1 RUN: 0b518369-7ab6-4e12-a806-d2bc3dda5a0b